bitfinex-derivatives/quotes_BTCF0:USTF0_20250904
["timestamp","ask_amount","ask_price","bid_price","bid_amount"]
[1757021087692,1.0194494,110480.0,110470.0,1.6271476]
[1757021087993,1.0204494,110480.0,110470.0,1.6271476]
[1757021088686,1.0214494,110480.0,110470.0,1.6271476]
[1757021089395,1.0214494,110480.0,110470.0,1.63622724]
[1757021090002,1.2714494,110480.0,110470.0,0.70554763]
[1757021090198,1.2714494,110480.0,110470.0,1.52650763]
[1757021091504,1.2714494,110480.0,110470.0,1.26220763]
[1757021093805,1.2714494,110480.0,110470.0,1.26672763]
[1757021095106,1.2714494,110480.0,110470.0,1.26668763]
[1757021101210,1.0214494,110480.0,110470.0,1.26668763]
[1757021101910,1.0214494,110480.0,110470.0,0.44576763]
[1757021102109,1.0214494,110480.0,110470.0,1.26660763]
[1757021103306,1.0214494,110480.0,110470.0,0.44576763]
[1757021103500,1.2714494,110480.0,110470.0,1.26656763]
[1757021104504,1.2714494,110480.0,110470.0,0.07588799]
[1757021104709,1.2714494,110480.0,110470.0,0.89668799]
[1757021105910,1.2714494,110480.0,110470.0,0.90590842]
[1757021107211,1.2714494,110480.0,110470.0,0.89668799]
[1757021109408,2.7875988,110480.0,110470.0,0.04788799]
[1757021109614,2.46206473,110480.0,110470.0,0.04088799]
[1757021109914,2.79665413,110480.0,110470.0,0.04088799]
[1757021110108,4.29665413,110480.0,110470.0,0.04088799]
[1757021110709,4.2875988,110480.0,110470.0,0.04088799]
[1757021114520,4.29684963,110480.0,110470.0,0.04088799]
[1757021114916,4.29684963,110480.0,110460.0,0.00404]
[1757021115222,1.0654988,110470.0,110460.0,0.00404]
[1757021115422,1.7254988,110470.0,110460.0,0.00394]
[1757021116013,2.5462588,110470.0,110460.0,0.00394]
[1757021118526,2.5472588,110470.0,110460.0,0.00394]
[1757021118720,2.5492588,110470.0,110460.0,0.00394]
[1757021121426,2.5492588,110470.0,110450.0,0.82076]
[1757021121627,0.7046988,110460.0,110450.0,0.82076]
[1757021121927,0.03552,110450.0,110440.0,1.21384524]
[1757021122127,1.0501094,110450.0,110440.0,1.21384524]
[1757021128944,1.0501094,110450.0,110440.0,0.00910524]
[1757021129242,1.0501094,110450.0,110440.0,0.82076]
[1757021129938,1.0501094,110450.0,110440.0,0.85310422]
[1757021130129,1.0501094,110450.0,110440.0,0.82992422]
[1757021131538,1.4109094,110450.0,110440.0,0.82992422]
[1757021134838,0.01283,110440.0,110430.0,2.12797243]
[1757021135140,1.0574194,110440.0,110430.0,2.94873243]
[1757021135343,1.0574194,110440.0,110430.0,2.95790112]
[1757021135744,1.0574194,110440.0,110430.0,2.59710112]
[1757021136242,1.3940088,110440.0,110430.0,2.58793243]
[1757021136443,1.7548088,110440.0,110430.0,2.56992]
[1757021136643,1.7774988,110440.0,110430.0,0.82076]
[1757021137641,1.7774988,110440.0,110430.0,0.84394]
[1757021138132,1.4429094,110440.0,110430.0,0.84394]
[1757021138945,1.10832,110440.0,110430.0,0.84394]
[1757021139141,1.4429094,110440.0,110430.0,0.85296974]
[1757021139645,1.0821094,110440.0,110430.0,0.85296974]
[1757021143351,1.4166988,110440.0,110430.0,0.85296974]
[1757021143744,1.0821094,110440.0,110430.0,0.86573974]
[1757021143949,1.0821094,110440.0,110430.0,0.85296974]
[1757021144549,1.0821094,110440.0,110430.0,0.86573974]
[1757021145453,1.41726704,110440.0,110430.0,0.86573974]
[1757021146355,1.41726704,110440.0,110430.0,0.85296974]
[1757021147956,1.41726704,110440.0,110430.0,0.86581974]
[1757021150660,1.75214056,110440.0,110430.0,0.86581974]
[1757021152758,1.75214056,110440.0,110430.0,0.03220974]
[1757021153166,1.75214056,110440.0,110430.0,0.85304974]
[1757021153669,1.75214056,110440.0,110430.0,0.82986974]
[1757021154874,1.75214056,110440.0,110430.0,0.83438974]
[1757021160984,1.75214056,110440.0,110430.0,0.85769974]
[1757021161485,1.75214056,110440.0,110430.0,0.83438974]
[1757021161984,1.75214056,110440.0,110430.0,0.01354974]
[1757021162284,2.11294056,110440.0,110430.0,0.83438974]
[1757021162476,2.36294056,110440.0,110430.0,0.00452]
[1757021179006,0.03576,110430.0,110420.0,0.03209532]
[1757021179194,1.30550704,110430.0,110420.0,0.03209532]
[1757021180296,1.30550704,110430.0,110420.0,0.03661532]
[1757021193401,0.95799352,110430.0,110420.0,0.66140532]
[1757021193605,1.29286704,110430.0,110420.0,0.66140532]
[1757021194312,1.29286704,110430.0,110420.0,0.75195932]
[1757021202529,1.29286704,110430.0,110420.0,1.57275932]
[1757021204530,1.29286704,110430.0,110420.0,0.75195932]
[1757021204832,1.29286704,110430.0,110420.0,1.57275932]
[1757021207438,0.95801217,110430.0,110420.0,1.57275932]
[1757021208025,0.95801217,110430.0,110420.0,1.32275932]
[1757021208229,0.93489217,110430.0,110420.0,0.75195932]
[1757021208534,0.95646217,110430.0,110420.0,0.75195932]
[1757021208734,0.95646217,110430.0,110420.0,1.57271932]
[1757021210139,0.93489217,110430.0,110420.0,0.75195932]
[1757021210638,0.95646217,110430.0,110420.0,1.57271932]
[1757021211738,0.95646217,110430.0,110420.0,0.75195932]
[1757021211937,0.95646217,110430.0,110420.0,1.57271932]
[1757021219042,0.95646217,110430.0,110420.0,1.83701932]
[1757021220338,0.6,110430.0,110420.0,2.17191149]
[1757021220646,0.6,110430.0,110420.0,2.76247069]
[1757021220944,0.6,110430.0,110420.0,2.26247069]
[1757021221244,0.6,110430.0,110420.0,1.84007862]
[1757021222244,0.6,110430.0,110420.0,2.70497079]
[1757021222646,0.6,110430.0,110420.0,2.17497079]
[1757021224039,0.6,110430.0,110420.0,1.84007862]
[1757021224947,0.6,110430.0,110420.0,1.57577862]
[1757021228146,0.6,110430.0,110420.0,0.75501862]
[1757021228350,0.6,110430.0,110420.0,1.59381843]
[1757021228650,1.30444434,110430.0,110420.0,1.41270523]
[1757021229346,1.55444434,110430.0,110420.0,1.25020513]
[1757021229736,1.55444434,110430.0,110420.0,1.23621513]
[1757021231839,1.55444434,110430.0,110420.0,1.21805532]
[1757021235950,0.88466,110430.0,110420.0,1.21805532]
[1757021236141,1.55444434,110430.0,110420.0,1.21805532]
[1757021241556,1.55444434,110430.0,110420.0,0.39741532]
[1757021241756,1.55444434,110430.0,110420.0,0.85725532]
[1757021243859,1.55444434,110430.0,110420.0,1.21805532]
[1757021244056,1.55444434,110430.0,110420.0,1.23129532]
[1757021244756,1.21955217,110430.0,110420.0,1.23129532]
[1757021245258,1.21955217,110430.0,110420.0,1.21805532]
[1757021245654,1.55444434,110430.0,110420.0,1.21805532]
[1757021247461,0.93489217,110430.0,110420.0,1.32184932]
[1757021249660,0.93489217,110430.0,110420.0,1.23129532]
[1757021251658,0.93489217,110430.0,110420.0,1.49559532]
[1757021251962,0.6,110430.0,110420.0,1.49559532]
[1757021252162,0.93489217,110430.0,110420.0,1.49559532]
[1757021256265,0.93489217,110430.0,110420.0,1.13479532]
[1757021256566,0.93489217,110430.0,110420.0,1.49559532]
[1757021257468,0.6,110430.0,110420.0,1.58614932]
[1757021257666,0.93489217,110430.0,110420.0,1.58614932]
[1757021257966,0.6,110430.0,110420.0,1.58614932]
[1757021258267,0.93489217,110430.0,110420.0,1.58614932]
[1757021259774,0.6,110430.0,110420.0,1.49559532]
[1757021260068,0.93489217,110430.0,110420.0,1.49559532]
[1757021263173,0.6,110430.0,110420.0,1.49559532]
[1757021263477,0.93489217,110430.0,110420.0,1.49559532]
[1757021267772,0.95764217,110430.0,110420.0,0.67495532]
[1757021267968,0.95764217,110430.0,110420.0,1.65865542]
[1757021269471,0.95759621,110430.0,110420.0,1.99350163]
[1757021270072,0.62275,110430.0,110420.0,1.99350163]
[1757021270272,0.95759621,110430.0,110420.0,1.99350163]
[1757021270474,0.95759621,110430.0,110420.0,0.67495532]
[1757021270674,0.95759621,110430.0,110420.0,1.83120153]
[1757021272181,0.95759621,110430.0,110420.0,2.19200153]
[1757021272979,0.95759621,110430.0,110420.0,1.85715532]
[1757021273181,0.95759621,110430.0,110420.0,2.19200153]
[1757021278391,0.95759621,110430.0,110420.0,1.47040153]
[1757021278690,0.95759621,110430.0,110420.0,2.19200153]
[1757021280292,0.95759621,110430.0,110420.0,2.19164153]
[1757021280691,0.6,110430.0,110420.0,2.86704174]
[1757021280897,0.6,110430.0,110420.0,2.95760094]
[1757021281297,0.6,110430.0,110420.0,2.70760094]
[1757021281697,0.6,110430.0,110420.0,3.38010104]
[1757021282401,0.6,110430.0,110420.0,2.71040862]
[1757021282599,0.6,110430.0,110420.0,2.04906104]
[1757021282800,0.93484621,110430.0,110420.0,2.20104862]
[1757021283000,0.93484621,110430.0,110420.0,2.53589483]
[1757021283201,0.93484621,110430.0,110420.0,3.26619483]
[1757021283393,0.93484621,110430.0,110420.0,2.53589483]
[1757021283592,0.93484621,110430.0,110420.0,2.53613483]
[1757021289007,0.93484621,110430.0,110420.0,2.37363473]
[1757021290408,0.93484621,110430.0,110420.0,2.37463473]
[1757021291205,0.93484621,110430.0,110420.0,2.37563473]
[1757021292506,0.6,110430.0,110420.0,2.37563473]
[1757021292707,0.93484621,110430.0,110420.0,2.37563473]
[1757021292906,0.93484621,110430.0,110420.0,1.55371473]
[1757021293105,0.93484621,110430.0,110420.0,2.37531473]
[1757021293511,0.93484621,110430.0,110420.0,2.52561473]
[1757021293808,0.93484621,110430.0,110420.0,2.53781483]
[1757021295408,0.93484621,110430.0,110420.0,1.71621483]
[1757021295706,0.93484621,110430.0,110420.0,2.53761483]
[1757021296412,0.6,110430.0,110420.0,1.38136862]
[1757021296708,0.93484621,110430.0,110420.0,2.53757483]
[1757021297397,0.93484621,110430.0,110420.0,1.71621483]
[1757021297593,0.93484621,110430.0,110420.0,2.53749483]
[1757021309314,0.6,110430.0,110420.0,2.53749483]
[1757021309516,0.93484621,110430.0,110420.0,2.20264862]
[1757021309817,0.93484621,110430.0,110420.0,2.87234104]
[1757021310014,0.93484621,110430.0,110420.0,2.70984094]
[1757021310617,0.93484621,110430.0,110420.0,2.04014852]
[1757021311116,0.93484621,110430.0,110420.0,2.37499473]
[1757021313027,0.93484621,110430.0,110420.0,2.04014852]
[1757021313320,0.93484621,110430.0,110420.0,2.37499473]
[1757021314020,0.93484621,110430.0,110420.0,2.04014852]
[1757021314220,0.93484621,110430.0,110420.0,2.37499473]
[1757021319223,0.6,110430.0,110420.0,2.37499473]
[1757021319424,0.93484621,110430.0,110420.0,2.53762267]
[1757021320125,0.93484621,110430.0,110420.0,2.37499473]
[1757021320312,0.6,110430.0,110420.0,2.37499473]
[1757021320514,0.93484621,110430.0,110420.0,2.37499473]
[1757021320718,0.93484621,110430.0,110420.0,2.70984094]
[1757021323328,0.6,110430.0,110420.0,2.70984094]
[1757021323629,0.93484621,110430.0,110420.0,2.70984094]
[1757021324224,0.93484621,110430.0,110420.0,2.86014094]
[1757021324420,0.93484621,110430.0,110420.0,2.70984094]
[1757021326929,0.93484621,110430.0,110420.0,1.88856094]
[1757021327128,0.93484621,110430.0,110420.0,2.37447473]
[1757021327817,0.6,110430.0,110420.0,2.37447473]
[1757021328016,0.93484621,110430.0,110420.0,2.37447473]
[1757021329529,0.93484621,110430.0,110420.0,2.37443174]
[1757021329530,0.6,110430.0,110420.0,2.37443174]
[1757021332129,0.6,110430.0,110420.0,2.53705919]
[1757021335334,0.6,110430.0,110420.0,2.37443174]
[1757021345642,0.34763322,110460.0,110450.0,0.01372]
[1757021345842,1.04999322,110460.0,110450.0,0.85594]
[1757021346235,1.04999322,110460.0,110450.0,1.21674]
[1757021346841,1.05099322,110460.0,110450.0,1.22126]
[1757021347939,1.05399322,110460.0,110450.0,1.22126]
[1757021349446,0.71919,110460.0,110450.0,1.22126]
[1757021349646,1.05399322,110460.0,110450.0,1.22126]
[1757021350446,0.71919,110460.0,110450.0,1.22126]
[1757021350645,1.05399322,110460.0,110450.0,1.22126]
[1757021354646,1.05399322,110460.0,110450.0,0.40066]
[1757021354948,1.05399322,110460.0,110450.0,1.22122]
[1757021382977,1.05399322,110460.0,110450.0,0.40066]
[1757021383180,1.74959644,110460.0,110450.0,0.82492]
[1757021384280,1.38879644,110460.0,110450.0,0.82492]
[1757021389586,1.38876198,110460.0,110450.0,0.82492]
[1757021391680,1.63876198,110460.0,110450.0,0.82492]
[1757021392777,1.63876198,110460.0,110450.0,0.84658]
[1757021394084,1.99956198,110460.0,110450.0,0.84658]
[1757021396885,1.99956198,110460.0,110450.0,0.82492]
[1757021401183,1.74956198,110460.0,110450.0,0.82492]
[1757021409892,1.07999,110460.0,110450.0,0.82492]
[1757021410096,1.38876198,110460.0,110450.0,0.82492]
[1757021412599,1.38876198,110460.0,110450.0,0.84658]
[1757021412890,1.38876198,110460.0,110450.0,0.82492]
[1757021414299,1.38876198,110460.0,110450.0,0.84658]
[1757021420100,1.38876198,110460.0,110450.0,0.82492]
[1757021420291,1.38876198,110460.0,110450.0,0.8248]
[1757021423107,1.38876198,110460.0,110450.0,0.00452]
[1757021423297,1.38876198,110460.0,110450.0,0.8248]
[1757021423601,1.38876198,110460.0,110450.0,0.00452]
[1757021423801,1.38876198,110460.0,110450.0,0.8248]
[1757021428398,1.38876198,110460.0,110450.0,0.84692]
[1757021430806,1.97354797,110460.0,110450.0,0.8248]
[1757021434210,1.63876198,110460.0,110450.0,0.8248]
[1757021441518,1.63876198,110460.0,110450.0,0.82872]
[1757021441912,1.97354797,110460.0,110450.0,0.82872]
[1757021445414,1.97354797,110460.0,110450.0,0.85084]
[1757021445714,1.63876198,110460.0,110450.0,0.85084]
[1757021449518,1.63876576,110460.0,110450.0,0.85084]
[1757021450409,0.96919,110460.0,110450.0,0.85084]
[1757021450713,1.63876576,110460.0,110450.0,0.85084]
[1757021458930,1.38876576,110460.0,110450.0,1.21164]
[1757021459125,1.05397788,110460.0,110450.0,1.21164]
[1757021459330,1.38876576,110460.0,110450.0,1.21164]
[1757021459530,1.38876576,110460.0,110450.0,0.85084]
[1757021460224,1.38876576,110460.0,110450.0,1.21164]
[1757021460424,1.38876576,110460.0,110450.0,1.21152]
[1757021461329,1.38876576,110460.0,110450.0,0.39136]
[1757021461635,1.38876576,110460.0,110450.0,1.21152]
[1757021466034,0.71919,110460.0,110450.0,0.40422]
[1757021466234,1.05397788,110460.0,110450.0,1.22438]
[1757021469334,0.71919,110460.0,110450.0,1.22438]
[1757021469533,1.05397788,110460.0,110450.0,1.22438]
[1757021470437,0.71919,110460.0,110450.0,1.22438]
[1757021470642,0.71919,110460.0,110450.0,0.7447495]
[1757021470643,1.04114788,110460.0,110450.0,0.7447495]
[1757021470833,1.04114788,110460.0,110450.0,1.5648695]
[1757021471233,1.05495788,110460.0,110450.0,0.67249254]
[1757021471534,1.05495788,110460.0,110450.0,1.49305254]
[1757021473736,1.05495788,110460.0,110450.0,1.49413254]
[1757021474034,1.05495788,110460.0,110450.0,0.67249254]
[1757021474243,1.05495788,110460.0,110450.0,0.93679254]
[1757021474539,1.05495788,110460.0,110450.0,1.75839254]
[1757021474840,1.05495788,110460.0,110450.0,1.75851254]
[1757021475738,1.38974576,110460.0,110450.0,0.31313254]
[1757021476139,1.38974576,110460.0,110450.0,1.11301254]
[1757021479840,1.05495788,110460.0,110450.0,1.11301254]
[1757021480050,1.38974576,110460.0,110450.0,0.87162254]
[1757021482551,1.38974576,110460.0,110450.0,0.84871254]
[1757021482846,1.38974576,110460.0,110450.0,0.87162254]
[1757021496557,1.38974576,110460.0,110450.0,0.86770254]
[1757021496756,1.63974576,110460.0,110450.0,0.00452]
[1757021497059,2.00054576,110460.0,110450.0,0.8276]
[1757021497447,2.00054576,110460.0,110450.0,0.00452]
[1757021499251,2.00054576,110460.0,110450.0,0.00844]
[1757021503762,2.82386576,110460.0,110450.0,0.00844]
[1757021504766,0.0356,110430.0,110420.0,0.42238386]
[1757021504954,1.28517576,110430.0,110420.0,1.24566386]
[1757021505152,0.95038788,110430.0,110420.0,1.24566386]
[1757021507370,0.95038788,110430.0,110420.0,1.24666386]
[1757021507557,0.95038788,110430.0,110420.0,1.24766386]
[1757021509465,0.95038788,110430.0,110420.0,1.23442386]
[1757021509666,1.28517576,110430.0,110420.0,1.48442386]
[1757021510770,0.95038788,110430.0,110420.0,1.48442386]
[1757021511464,1.28545136,110430.0,110420.0,1.48442386]
[1757021513479,1.28545136,110430.0,110420.0,1.46644532]
[1757021514777,1.28645136,110430.0,110420.0,1.46544532]
[1757021515176,1.28645136,110430.0,110420.0,1.46444532]
[1757021521379,1.28645136,110430.0,110420.0,1.21444532]
[1757021524684,0.6166,110430.0,110420.0,1.22709532]
[1757021524881,1.28645136,110430.0,110420.0,1.22709532]
[1757021525786,0.6166,110430.0,110420.0,1.31764942]
[1757021525983,1.27344136,110430.0,110420.0,1.31764942]
[1757021526887,0.93851568,110430.0,110420.0,1.31764942]
[1757021527387,1.27344136,110430.0,110420.0,1.31764942]
[1757021527787,0.93851568,110430.0,110420.0,1.31764942]
[1757021528686,1.27344136,110430.0,110420.0,1.31764942]
[1757021529186,1.27344136,110430.0,110420.0,0.49436942]
[1757021529387,0.93851568,110430.0,110420.0,0.49436942]
[1757021529588,0.93851568,110430.0,110420.0,1.31828942]
[1757021529789,0.93851568,110430.0,110420.0,0.49436942]
[1757021530087,0.93851568,110430.0,110420.0,1.31844942]
[1757021530490,0.93851568,110430.0,110420.0,0.49436942]
[1757021530681,0.93851568,110430.0,110420.0,1.31844942]
[1757021530882,0.93851568,110430.0,110420.0,1.0792951]
[1757021531082,0.93851568,110430.0,110420.0,0.74436942]
[1757021531292,0.93851568,110430.0,110420.0,1.56848942]
[1757021531688,0.60359,110430.0,110420.0,1.56848942]
[1757021531895,0.93851568,110430.0,110420.0,1.56848942]
[1757021533495,0.60359,110430.0,110420.0,1.56848942]
[1757021533694,0.93851568,110430.0,110420.0,1.56848942]
[1757021534594,0.93851568,110430.0,110420.0,1.73114576]
[1757021536795,0.60359,110430.0,110420.0,1.73114576]
[1757021536995,0.93851568,110430.0,110420.0,1.73114576]
[1757021545308,0.93851568,110430.0,110420.0,0.90702576]
[1757021545705,0.93851568,110430.0,110420.0,1.73034576]
[1757021546304,0.93851568,110430.0,110420.0,0.90702576]
[1757021546505,0.93851568,110430.0,110420.0,1.73034576]
[1757021551905,0.581,110430.0,110420.0,1.81527144]
[1757021552212,0.91592568,110430.0,110420.0,1.81527144]
[1757021554221,0.93818568,110430.0,110420.0,1.81535144]
[1757021554810,0.60326,110430.0,110420.0,2.17615144]
[1757021555015,0.581,110430.0,110420.0,2.51107712]
[1757021555207,0.91592568,110430.0,110420.0,2.17615144]
[1757021555515,0.581,110430.0,110420.0,2.76107712]
[1757021555914,0.581,110430.0,110420.0,2.96615144]
[1757021556114,0.581,110430.0,110420.0,2.76107712]
[1757021556315,0.581,110430.0,110420.0,3.38107712]
[1757021556911,0.581,110430.0,110420.0,2.76107712]
[1757021557215,0.581,110430.0,110420.0,2.86272078]
[1757021557515,0.581,110430.0,110420.0,3.45272078]
[1757021557814,0.581,110430.0,110420.0,3.39272078]
[1757021558017,0.581,110430.0,110420.0,3.41272078]
[1757021558215,0.581,110430.0,110420.0,2.86272078]
[1757021558415,0.581,110430.0,110420.0,3.02521091]
[1757021560821,0.581,110430.0,110420.0,2.35531955]
[1757021561010,0.91592568,110430.0,110420.0,3.02517091]
[1757021561221,0.91592568,110430.0,110420.0,2.69024523]
[1757021561919,0.581,110430.0,110420.0,2.69024523]
[1757021562223,0.91592568,110430.0,110420.0,2.69024523]
[1757021563714,0.581,110430.0,110420.0,1.86688523]
[1757021563916,0.91592568,110430.0,110420.0,2.68996523]
[1757021566422,0.581,110430.0,110420.0,2.68996523]
[1757021566622,0.581,110430.0,110420.0,3.02489091]
[1757021566623,0.91592568,110430.0,110420.0,3.02489091]
[1757021568420,0.91592568,110430.0,110420.0,2.35503955]
[1757021568620,0.91592568,110430.0,110420.0,3.02489091]
[1757021573224,0.91592568,110430.0,110420.0,3.02433091]
[1757021573420,0.581,110430.0,110420.0,2.68927703]
[1757021581234,0.581,110430.0,110420.0,2.43927703]
[1757021585837,0.221,110430.0,110420.0,2.43927703]
[1757021586030,0.001,110430.0,110420.0,2.43927703]
[1757021586236,0.591,110430.0,110420.0,2.43927703]
[1757021586738,0.591,110430.0,110420.0,2.2767869]
[1757021602252,0.591,110430.0,110420.0,1.94198942]
[1757021602446,0.591,110430.0,110420.0,2.2767869]
[1757021610662,0.591,110430.0,110420.0,1.4542669]
[1757021610864,0.591,110430.0,110420.0,2.2759069]
[1757021620573,0.591,110430.0,110420.0,2.29408113]
[1757021629769,0.591,110430.0,110420.0,2.45668547]
[1757021630374,0.531,110430.0,110420.0,2.45668547]
[1757021633980,0.531,110430.0,110420.0,3.03668547]
[1757021634169,0.531,110430.0,110420.0,2.45668547]
[1757021634878,0.531,110430.0,110420.0,3.05668547]
[1757021635073,0.531,110430.0,110420.0,2.45668547]
[1757021635576,0.86580016,110430.0,110420.0,2.79148831]
[1757021637076,0.86580016,110430.0,110420.0,3.41148831]
[1757021637277,0.86580016,110430.0,110420.0,2.79148831]
[1757021637777,0.86580016,110430.0,110420.0,3.36148831]
[1757021637978,0.86580016,110430.0,110420.0,2.79148831]
[1757021638473,0.86580016,110430.0,110420.0,3.36148831]
[1757021638679,0.86580016,110430.0,110420.0,2.79148831]
[1757021642585,0.531,110430.0,110420.0,3.31148831]
[1757021642882,0.86580016,110430.0,110420.0,2.79148831]
[1757021643385,0.86580016,110430.0,110420.0,3.31148831]
[1757021643585,0.86580016,110430.0,110420.0,2.62888397]
[1757021644381,0.86580016,110430.0,110420.0,3.31149388]
[1757021644580,0.86580016,110430.0,110420.0,2.79149388]
[1757021644986,0.86580016,110430.0,110420.0,3.31149388]
[1757021645188,0.86580016,110430.0,110420.0,3.14888397]
[1757021647788,0.86580016,110430.0,110420.0,3.29918397]
[1757021647982,0.86580016,110430.0,110420.0,3.14888397]
[1757021651588,0.3,110430.0,110420.0,3.14888397]
[1757021651792,0.35784016,110440.0,110430.0,0.1264051]
[1757021652086,0.96774016,110440.0,110430.0,0.82200526]
[1757021652492,0.63294,110440.0,110430.0,0.82200526]
[1757021652693,0.96774016,110440.0,110430.0,1.35200526]
[1757021653090,0.96874016,110440.0,110430.0,1.35200526]
[1757021653290,0.96874016,110440.0,110430.0,1.51461517]
[1757021654896,0.96974016,110440.0,110430.0,1.51461517]
[1757021655898,0.96974016,110440.0,110430.0,0.98461517]
[1757021656198,0.96974016,110440.0,110430.0,1.57461517]
[1757021657890,0.96974016,110440.0,110430.0,0.98461517]
[1757021658091,0.96974016,110440.0,110430.0,1.24891517]
[1757021659797,0.96974016,110440.0,110430.0,0.91411501]
[1757021660001,0.96974016,110440.0,110430.0,1.24891517]
[1757021661507,0.612,110440.0,110430.0,1.24891517]
[1757021661802,0.94680016,110440.0,110430.0,1.24891517]
[1757021661995,0.97011016,110440.0,110430.0,0.91411501]
[1757021662195,0.97011016,110440.0,110430.0,1.24891517]
[1757021662396,0.63531,110440.0,110430.0,1.24891517]
[1757021662704,0.97011016,110440.0,110430.0,1.24891517]
[1757021664110,0.612,110440.0,110430.0,1.33946617]
[1757021664292,0.612,110440.0,110430.0,1.88946617]
[1757021666809,0.612,110440.0,110430.0,1.55466601]
[1757021667105,0.612,110440.0,110430.0,1.88946617]
[1757021668009,0.612,110440.0,110430.0,2.71058617]
[1757021668605,0.612,110440.0,110430.0,1.88946617]
[1757021668806,0.612,110440.0,110430.0,2.71058617]
[1757021674415,0.94680016,110440.0,110430.0,2.71058617]
[1757021674810,0.94680016,110440.0,110430.0,2.16058617]
[1757021675309,0.94680016,110440.0,110430.0,1.33946617]
[1757021675511,0.94680016,110440.0,110430.0,2.16054617]
[1757021675710,0.612,110440.0,110430.0,2.16054617]
[1757021675911,0.94680016,110440.0,110430.0,2.16054617]
[1757021676709,0.94580016,110440.0,110430.0,2.16054617]
[1757021676911,0.94480016,110440.0,110430.0,2.16054617]
[1757021679815,0.94480016,110440.0,110430.0,1.99793626]
[1757021681112,0.94480016,110440.0,110430.0,2.35873626]
[1757021682815,0.61,110440.0,110430.0,2.35873626]
[1757021683015,0.94480016,110440.0,110430.0,2.35873626]
[1757021683317,0.94480016,110440.0,110430.0,2.52128137]
[1757021685916,0.94480016,110440.0,110430.0,1.70020137]
[1757021686124,0.94480016,110440.0,110430.0,2.52124137]
[1757021690523,0.94480016,110440.0,110430.0,2.35869626]
[1757021695724,0.61,110440.0,110430.0,2.35869626]
[1757021695930,0.94480016,110440.0,110430.0,2.35869626]
[1757021697038,0.61,110440.0,110430.0,2.35869626]
[1757021697238,0.94480016,110440.0,110430.0,2.35869626]
[1757021697438,0.61,110440.0,110430.0,2.35864019]
[1757021700241,0.61,110440.0,110430.0,3.22864019]
[1757021700242,0.19,110440.0,110430.0,3.22864019]
[1757021701236,0.19,110440.0,110430.0,2.97864019]
[1757021701939,0.19,110440.0,110430.0,2.35864019]
[1757021704036,0.19,110440.0,110430.0,2.60864019]
[1757021706444,0.19,110440.0,110430.0,3.15864019]
[1757021707142,0.19,110440.0,110430.0,2.60864019]
[1757021708637,0.19,110440.0,110430.0,2.81856436]
[1757021708942,0.19,110440.0,110430.0,1.99752436]
[1757021709131,0.19,110440.0,110430.0,2.81844436]
[1757021709741,0.19,110440.0,110430.0,2.60852019]
[1757021711043,0.19,110440.0,110430.0,2.2737761]
[1757021711245,0.19,110440.0,110430.0,2.60852019]
[1757021714046,0.19,110440.0,110430.0,2.60848019]
[1757021714547,0.19,110440.0,110430.0,2.81840436]
[1757021716049,0.19,110440.0,110430.0,2.48366027]
[1757021716247,0.19,110440.0,110430.0,2.81840436]
[1757021717849,0.19,110440.0,110430.0,2.48366027]
[1757021718052,0.19,110440.0,110430.0,2.81840436]
[1757021720344,0.19,110440.0,110430.0,2.96870436]
[1757021720549,0.19,110440.0,110430.0,2.48366027]
[1757021720748,0.19,110440.0,110430.0,2.81840436]
[1757021726956,0.19,110440.0,110430.0,1.66278027]
[1757021727153,0.64219,110440.0,110430.0,2.23362027]
[1757021727359,0.64219,110440.0,110430.0,2.56836436]
[1757021727856,0.64219,110440.0,110430.0,1.41278057]
[1757021728056,0.64219,110440.0,110430.0,2.23362057]
[1757021729256,0.64219,110440.0,110430.0,2.56836466]
[1757021731356,0.64219,110440.0,110430.0,2.23362057]
[1757021731556,0.64219,110440.0,110430.0,2.56836466]
[1757021731761,0.64,110440.0,110430.0,2.56836466]
[1757021732257,0.0001,110450.0,110430.0,2.56836466]
[1757021732460,0.71229,110450.0,110440.0,0.89357525]
[1757021732649,0.71219,110450.0,110440.0,0.91168974]
[1757021732849,0.71219,110450.0,110440.0,0.57694565]
[1757021733056,1.04693409,110450.0,110440.0,0.57694565]
[1757021734958,1.04793409,110450.0,110440.0,0.57694565]
[1757021735760,1.04893409,110450.0,110440.0,0.57694565]
[1757021737457,1.04893409,110450.0,110440.0,0.66748285]
[1757021742259,0.71419,110450.0,110440.0,0.66748285]
[1757021742565,1.04893409,110450.0,110440.0,0.66748285]
[1757021742958,1.04893409,110450.0,110440.0,0.50467169]
[1757021743260,0.71419,110450.0,110440.0,0.50467169]
[1757021743461,1.04893409,110450.0,110440.0,0.50467169]
[1757021744358,1.04893409,110450.0,110440.0,1.32779169]
[1757021751067,1.04893409,110450.0,110440.0,1.49060285]
[1757021752468,1.04893409,110450.0,110440.0,1.85140285]
[1757021757366,0.71419,110450.0,110440.0,1.85140285]
[1757021757771,1.04893409,110450.0,110440.0,1.85140285]
[1757021759174,0.71419,110450.0,110440.0,1.85140285]
[1757021759372,1.04893409,110450.0,110440.0,1.85140285]
[1757021759573,1.04891645,110450.0,110440.0,2.1861293]
[1757021763274,1.04891645,110450.0,110440.0,1.85140285]
[1757021763473,1.04891645,110450.0,110440.0,2.1861293]
[1757021767081,1.04891645,110450.0,110440.0,1.85168285]
[1757021767282,0.71419,110450.0,110440.0,1.85168285]
[1757021767476,1.04891645,110450.0,110440.0,2.1864093]
[1757021769884,1.04891645,110450.0,110440.0,2.1903293]
[1757021770577,1.04891645,110450.0,110440.0,1.85560285]
[1757021770782,1.04891645,110450.0,110440.0,2.1902093]
[1757021771784,1.04891645,110450.0,110440.0,1.4686093]
[1757021771977,1.04891645,110450.0,110440.0,2.1902093]
[1757021772480,0.71419,110450.0,110440.0,2.1902093]
[1757021772683,1.04891645,110450.0,110440.0,1.85548285]
[1757021772884,1.04891645,110450.0,110440.0,2.1902093]
[1757021773483,0.71419,110450.0,110440.0,2.1902093]
[1757021773783,1.04891645,110450.0,110440.0,2.1902093]
[1757021775282,1.04891645,110450.0,110440.0,2.02739814]
[1757021780301,1.04891645,110450.0,110440.0,2.1902093]
[1757021784304,1.04891645,110450.0,110440.0,1.85548285]
[1757021784504,1.04891645,110450.0,110440.0,2.1902093]
[1757021790010,1.04891645,110450.0,110440.0,1.85548285]
[1757021790502,1.04891645,110450.0,110440.0,2.1902093]
[1757021791509,0.71419,110450.0,110440.0,2.1902093]
[1757021791711,1.04891645,110450.0,110440.0,2.1902093]
[1757021802717,0.71419,110450.0,110440.0,2.1902093]
[1757021802918,1.04891645,110450.0,110440.0,2.1902093]
[1757021803722,0.71419,110450.0,110440.0,2.1902093]